[Event "Vetern-SM 50+ 2025"]
[Site "Uppsala, Sweden"]
[Date "2025.07.01"]
[Round "4.7"]
[White "Tobiasson, Bjorn"]
[Black "Lundberg, Daniel"]
[Result "1-0"]
[TimeControl "90 min for 40 move + 30 min with an increment of 30 sec starting move 1"]
[WhiteFideId "1773682"]
[BlackFideId "1759264"]
[WhiteElo "1884"]
[BlackElo "1838"]

1. d4 {[%clk 01:30:53]} {[%emt 00:00:06]} d5 {[%clk 01:30:49]} {[%emt
00:00:12]} 2. c4 {[%clk 01:31:15]} {[%emt 00:00:08]} e6 {[%clk 01:31:11]}
{[%emt 00:00:08]} 3. Nf3 {[%clk 01:31:33]} {[%emt 00:00:11]} a6 {[%clk
01:31:29]} {[%emt 00:00:13]} 4. g3 {[%clk 01:30:28]} {[%emt 00:01:35]} dxc4
{[%clk 01:31:39]} {[%emt 00:00:19]} 5. Bg2 {[%clk 01:30:47]} {[%emt 00:00:12]}
Nc6 {[%clk 01:31:48]} {[%emt 00:00:22]} 6. O-O {[%clk 01:28:42]} {[%emt
00:02:34]} Rb8 {[%clk 01:31:50]} {[%emt 00:00:29]} 7. b3 {[%clk 01:21:36]}
{[%emt 00:07:36]} cxb3 {[%clk 01:29:16]} {[%emt 00:03:02]} 8. axb3 {[%clk
01:21:46]} {[%emt 00:00:21]} Nf6 {[%clk 01:27:28]} {[%emt 00:02:18]} 9. Bb2
{[%clk 01:12:27]} {[%emt 00:09:50]} Be7 {[%clk 01:22:36]} {[%emt 00:05:21]} 10.
Nbd2 {[%clk 01:07:40]} {[%emt 00:05:17]} O-O {[%clk 01:20:08]} {[%emt
00:02:59]} 11. e4 {[%clk 01:05:43]} {[%emt 00:02:26]} Nb4 {[%clk 01:17:08]}
{[%emt 00:03:30]} 12. Qe2 {[%clk 01:01:16]} {[%emt 00:04:56]} Bd7 {[%clk
01:14:43]} {[%emt 00:02:56]} 13. Ne5 {[%clk 00:50:55]} {[%emt 00:10:51]} Nc2
{[%clk 01:06:15]} {[%emt 00:08:58]} 14. Rad1 {[%clk 00:44:38]} {[%emt
00:06:48]} Bb5 {[%clk 01:02:32]} {[%emt 00:04:13]} 15. Ndc4 {[%clk 00:44:16]}
{[%emt 00:00:51]} Nb4 {[%clk 01:01:47]} {[%emt 00:01:15]} 16. Rd2 {[%clk
00:38:15]} {[%emt 00:06:31]} Ne8 {[%clk 00:49:30]} {[%emt 00:12:47]} 17. d5
{[%clk 00:34:09]} {[%emt 00:04:35]} exd5 {[%clk 00:42:08]} {[%emt 00:07:53]} 18.
exd5 {[%clk 00:34:37]} {[%emt 00:00:03]} a5 {[%clk 00:29:53]} {[%emt 00:12:45]}
19. Re1 {[%clk 00:27:42]} {[%emt 00:07:24]} Bxc4 {[%clk 00:24:40]} {[%emt
00:05:44]} 20. Qxc4 {[%clk 00:22:17]} {[%emt 00:05:54]} Nd6 {[%clk 00:18:20]}
{[%emt 00:06:50]} 21. Qg4 {[%clk 00:19:31]} {[%emt 00:03:17]} f5 {[%clk
00:18:16]} {[%emt 00:00:32]} 22. Qe2 {[%clk 00:13:46]} {[%emt 00:06:15]} Bf6
{[%clk 00:18:32]} {[%emt 00:00:16]} 23. f4 {[%clk 00:14:03]} {[%emt 00:00:12]}
Re8 {[%clk 00:14:47]} {[%emt 00:04:16]} 24. Qf2 {[%clk 00:12:33]} {[%emt
00:01:59]} Qc8 {[%clk 00:12:56]} {[%emt 00:02:22]} 25. Qc5 {[%clk 00:10:59]}
{[%emt 00:02:03]} b6 {[%clk 00:12:48]} {[%emt 00:00:38]} 26. Qf2 {[%clk
00:10:57]} {[%emt 00:00:32]} Na6 {[%clk 00:12:51]} {[%emt 00:00:28]} 27. Nc6
{[%clk 00:10:00]} {[%emt 00:01:26]} Rxe1+ {[%clk 00:13:06]} {[%emt 00:00:15]}
28. Qxe1 {[%clk 00:10:20]} {[%emt 00:00:10]} Qe8 {[%clk 00:13:26]} {[%emt
00:00:10]} 29. Re2 {[%clk 00:07:51]} {[%emt 00:02:59]} Bxb2 {[%clk 00:12:33]}
{[%emt 00:01:23]} 30. Rxe8+ {[%clk 00:08:12]} {[%emt 00:00:09]} Rxe8 {[%clk
00:12:55]} {[%emt 00:00:09]} 31. Ne5 {[%clk 00:05:59]} {[%emt 00:02:42]} Nc5
{[%clk 00:13:08]} {[%emt 00:00:17]} 32. Qe2 {[%clk 00:03:51]} {[%emt 00:02:39]}
Bd4+ {[%clk 00:11:24]} {[%emt 00:02:14]} 33. Kf1 {[%clk 00:04:14]} {[%emt
00:00:06]} Nd7 {[%clk 00:11:11]} {[%emt 00:00:43]} 34. Qc2 {[%clk 00:03:25]}
{[%emt 00:01:19]} Nc5 {[%clk 00:11:20]} {[%emt 00:00:21]} 35. Nf3 {[%clk
00:02:51]} {[%emt 00:01:04]} Re3 {[%clk 00:11:12]} {[%emt 00:00:39]} 36. Nxd4
{[%clk 00:02:29]} {[%emt 00:00:52]} Nd3 {[%clk 00:09:39]} {[%emt 00:02:03]} 37.
Qd2 {[%clk 00:02:08]} {[%emt 00:00:50]} Re1+ {[%clk 00:09:48]} {[%emt
00:00:21]} 38. Qxe1 {[%clk 00:02:32]} {[%emt 00:00:06]} Nxe1 {[%clk 00:10:14]}
{[%emt 00:00:04]} 39. Kxe1 {[%clk 00:02:56]} {[%emt 00:00:06]} 1-0

[Event "Vetern-SM 50+ 2025"]
[Site "Uppsala, Sweden"]
[Date "2025.07.01"]
[Round "4.8"]
[White "Mitra, Ashoke"]
[Black "Hedin, Niclas"]
[Result "1/2-1/2"]
[TimeControl "90 min for 40 move + 30 min with an increment of 30 sec starting move 1"]
[WhiteFideId "1720767"]
[BlackFideId "1720708"]
[WhiteElo "1774"]
[BlackElo "1953"]

1. d4 {[%clk 01:30:38]} {[%emt 00:00:21]} d5 {[%clk 01:30:51]} {[%emt
00:00:09]} 2. Nf3 {[%clk 01:30:42]} {[%emt 00:00:26]} Nf6 {[%clk 01:31:12]}
{[%emt 00:00:09]} 3. c4 {[%clk 01:30:36]} {[%emt 00:00:37]} c6 {[%clk
01:31:33]} {[%emt 00:00:09]} 4. e3 {[%clk 01:30:33]} {[%emt 00:00:32]} Bf5
{[%clk 01:26:55]} {[%emt 00:05:08]} 5. Nc3 {[%clk 01:26:56]} {[%emt 00:04:08]}
e6 {[%clk 01:26:39]} {[%emt 00:00:44]} 6. Bd3 {[%clk 01:26:43]} {[%emt
00:00:44]} Bxd3 {[%clk 01:26:40]} {[%emt 00:00:30]} 7. Qxd3 {[%clk 01:26:55]}
{[%emt 00:00:18]} Nbd7 {[%clk 01:26:42]} {[%emt 00:00:27]} 8. e4 {[%clk
01:22:50]} {[%emt 00:04:35]} dxe4 {[%clk 01:22:41]} {[%emt 00:04:31]} 9. Nxe4
{[%clk 01:22:39]} {[%emt 00:00:41]} Nxe4 {[%clk 01:19:29]} {[%emt 00:03:42]} 10.
Qxe4 {[%clk 01:22:56]} {[%emt 00:00:14]} Nf6 {[%clk 01:19:47]} {[%emt
00:00:12]} 11. Qc2 {[%clk 01:20:37]} {[%emt 00:02:48]} Be7 {[%clk 01:19:48]}
{[%emt 00:00:29]} 12. O-O {[%clk 01:20:52]} {[%emt 00:00:15]} O-O {[%clk
01:20:10]} {[%emt 00:00:08]} 13. h3 {[%clk 01:20:37]} {[%emt 00:00:45]} Qc7
{[%clk 01:18:27]} {[%emt 00:02:13]} 14. Be3 {[%clk 01:19:10]} {[%emt 00:01:57]}
Rfd8 {[%clk 01:16:17]} {[%emt 00:02:40]} 15. Rfd1 {[%clk 01:17:14]} {[%emt
00:02:26]} Rac8 {[%clk 01:14:54]} {[%emt 00:01:52]} 16. Rac1 {[%clk 01:16:54]}
{[%emt 00:00:49]} Qa5 {[%clk 01:13:17]} {[%emt 00:02:08]} 17. a3 {[%clk
01:13:49]} {[%emt 00:03:37]} Nd7 {[%clk 01:03:30]} {[%emt 00:10:15]} 18. Qe4
{[%clk 01:03:26]} {[%emt 00:10:52]} Nf8 {[%clk 00:57:53]} {[%emt 00:06:09]} 19.
Bd2 {[%clk 00:58:43]} {[%emt 00:05:13]} Qa4 {[%clk 00:54:48]} {[%emt 00:03:35]}
20. Bg5 {[%clk 00:51:43]} {[%emt 00:07:30]} Bxg5 {[%clk 00:51:55]} {[%emt
00:03:23]} 21. Nxg5 {[%clk 00:51:51]} {[%emt 00:00:21]} h6 {[%clk 00:48:52]}
{[%emt 00:03:34]} 22. Nf3 {[%clk 00:51:53]} {[%emt 00:00:28]} Ng6 {[%clk
00:48:57]} {[%emt 00:00:24]} 23. Ne5 {[%clk 00:48:53]} {[%emt 00:03:30]} Nxe5
{[%clk 00:49:06]} {[%emt 00:00:22]} 24. Qxe5 {[%clk 00:48:58]} {[%emt
00:00:25]} Qb3 {[%clk 00:45:46]} {[%emt 00:03:50]} 25. Qe2 {[%clk 00:45:21]}
{[%emt 00:04:07]} Qb6 {[%clk 00:44:12]} {[%emt 00:02:03]} 26. c5 {[%clk
00:39:31]} {[%emt 00:06:21]} Qc7 {[%clk 00:42:37]} {[%emt 00:02:05]} 27. Rc3
{[%clk 00:35:15]} {[%emt 00:04:47]} Rd5 {[%clk 00:42:05]} {[%emt 00:01:01]} 28.
Rg3 {[%clk 00:33:12]} {[%emt 00:02:32]} Rcd8 {[%clk 00:41:29]} {[%emt
00:01:08]} 29. Qg4 {[%clk 00:28:43]} {[%emt 00:04:58]} Rg5 {[%clk 00:32:36]}
{[%emt 00:09:23]} 30. Qf3 {[%clk 00:27:39]} {[%emt 00:01:33]} Rxg3 {[%clk
00:32:42]} {[%emt 00:00:24]} 31. fxg3 {[%clk 00:25:19]} {[%emt 00:02:52]} Rd5
{[%clk 00:32:07]} {[%emt 00:01:04]} 32. Rd3 {[%clk 00:23:15]} {[%emt 00:02:35]}
Rf5 {[%clk 00:23:05]} {[%emt 00:09:31]} 33. Qe2 {[%clk 00:18:59]} {[%emt
00:04:45]} Qd8 {[%clk 00:21:47]} {[%emt 00:01:48]} 34. b4 {[%clk 00:18:17]}
{[%emt 00:01:13]} a6 {[%clk 00:21:26]} {[%emt 00:00:51]} 35. Kh2 {[%clk
00:17:16]} {[%emt 00:01:31]} Rd5 {[%clk 00:18:34]} {[%emt 00:03:22]} 36. Qf2
{[%clk 00:13:51]} {[%emt 00:03:55]} Qd7 {[%clk 00:16:14]} {[%emt 00:02:50]} 37.
Rf3 {[%clk 00:11:26]} {[%emt 00:02:54]} f6 {[%clk 00:14:41]} {[%emt 00:02:03]}
38. Rf4 {[%clk 00:11:05]} {[%emt 00:00:53]} f5 {[%clk 00:09:46]} {[%emt
00:05:24]} 39. Qe3 {[%clk 00:06:15]} {[%emt 00:05:20]} g5 {[%clk 00:08:54]}
{[%emt 00:01:21]} 40. Rf2 {[%clk 00:04:31]} {[%emt 00:02:13]} Kg7 {[%clk
00:02:13]} {[%emt 00:07:13]} 41. Re2 {[%clk 00:04:27]} {[%emt 00:00:34]} Kf6
{[%clk 00:02:16]} {[%emt 00:00:27]} 42. Re1 {[%clk 00:02:22]} {[%emt 00:02:36]}
Qf7 {[%clk 00:25:40]} {[%emt 00:07:04]} 43. Rf1 {[%clk 00:28:36]} {[%emt
00:04:17]} Ke7 {[%clk 00:24:13]} {[%emt 00:01:57]} 44. Rf2 {[%clk 00:26:00]}
{[%emt 00:03:06]} Qf6 {[%clk 00:23:48]} {[%emt 00:00:55]} 45. Rd2 {[%clk
00:23:57]} {[%emt 00:02:33]} Kd7 {[%clk 00:21:47]} {[%emt 00:02:31]} 46. Rd1
{[%clk 00:23:21]} {[%emt 00:01:06]} Ke7 {[%clk 00:20:43]} {[%emt 00:01:33]} 47.
Rd2 {[%clk 00:23:20]} {[%emt 00:00:31]} Kf7 {[%clk 00:20:53]} {[%emt 00:00:20]}
48. Rd1 {[%clk 00:22:58]} {[%emt 00:00:53]} Qd8 {[%emt 00:07:43]} 49. Qf2
{[%clk 00:22:24]} {[%emt 00:00:02]} Kg8 {[%clk 00:13:57]} 1/2-1/2

[Event "Vetern-SM 50+ 2025"]
[Site "Uppsala, Sweden"]
[Date "2025.07.02"]
[Round "5.1"]
[White "Olsson, Pether"]
[Black "Vernersson, Per"]
[Result "1/2-1/2"]
[TimeControl "90 min for 40 move + 30 min with an increment of 30 sec starting move 1"]
[WhiteFideId "1726820"]
[BlackFideId "1700863"]
[WhiteElo "2160"]
[BlackElo "2258"]

1. d4 {[%clk 01:30:50]} {[%emt 00:00:08]} d5 {[%clk 01:30:28]} {[%emt
00:00:34]} 2. Nf3 {[%clk 01:31:06]} {[%emt 00:00:13]} Nf6 {[%clk 01:30:19]}
{[%emt 00:00:40]} 3. Bf4 {[%clk 01:31:13]} {[%emt 00:00:22]} g6 {[%clk
01:29:12]} {[%emt 00:01:38]} 4. c4 {[%clk 01:28:36]} {[%emt 00:03:07]} Bg7
{[%clk 01:26:58]} {[%emt 00:02:43]} 5. Nc3 {[%clk 01:28:37]} {[%emt 00:00:29]}
c6 {[%clk 01:24:10]} {[%emt 00:03:19]} 6. e3 {[%clk 01:26:43]} {[%emt
00:02:21]} O-O {[%clk 01:24:17]} {[%emt 00:00:26]} 7. h3 {[%clk 01:26:48]}
{[%emt 00:00:22]} c5 {[%clk 01:19:46]} {[%emt 00:05:04]} 8. Qb3 {[%clk
01:16:10]} {[%emt 00:11:08]} cxd4 {[%clk 01:16:07]} {[%emt 00:04:09]} 9. Nxd4
{[%clk 01:05:51]} {[%emt 00:10:50]} dxc4 {[%clk 01:09:13]} {[%emt 00:07:22]} 10.
Bxc4 {[%clk 01:05:20]} {[%emt 00:01:00]} Nbd7 {[%clk 01:07:01]} {[%emt
00:02:42]} 11. Bh2 {[%clk 00:55:48]} {[%emt 00:10:03]} Nb6 {[%clk 00:58:08]}
{[%emt 00:09:22]} 12. O-O {[%clk 00:54:18]} {[%emt 00:02:00]} Nxc4 {[%clk
00:57:38]} {[%emt 00:01:02]} 13. Qxc4 {[%clk 00:54:45]} {[%emt 00:00:02]} Bd7
{[%clk 00:54:10]} {[%emt 00:03:58]} 14. Qb3 {[%clk 00:50:52]} {[%emt 00:04:22]}
Qb6 {[%clk 00:46:18]} {[%emt 00:08:24]} 15. Qa3 {[%clk 00:46:53]} {[%emt
00:04:28]} Rfe8 {[%clk 00:45:14]} {[%emt 00:01:33]} 16. Rfd1 {[%clk 00:43:37]}
{[%emt 00:03:46]} Rac8 {[%clk 00:42:17]} {[%emt 00:03:28]} 17. Nf3 {[%clk
00:36:17]} {[%emt 00:07:50]} Be6 {[%clk 00:39:19]} {[%emt 00:03:28]} 18. Be5
{[%clk 00:32:26]} {[%emt 00:04:20]} a5 {[%clk 00:37:34]} {[%emt 00:02:16]} 19.
Rd4 {[%clk 00:30:31]} {[%emt 00:02:25]} Rc4 {[%clk 00:36:59]} {[%emt 00:01:05]}
20. Rxc4 {[%clk 00:28:39]} {[%emt 00:02:23]} Bxc4 {[%clk 00:37:23]} {[%emt
00:00:06]} 21. b3 {[%clk 00:28:32]} {[%emt 00:00:37]} Be6 {[%clk 00:37:04]}
{[%emt 00:00:49]} 22. Na4 {[%clk 00:27:58]} {[%emt 00:01:05]} Qb5 {[%clk
00:36:25]} {[%emt 00:01:09]} 23. Rc1 {[%clk 00:26:11]} {[%emt 00:02:17]} Ne4
{[%clk 00:35:34]} {[%emt 00:01:20]} 24. Bxg7 {[%clk 00:23:47]} {[%emt
00:02:54]} Kxg7 {[%clk 00:35:59]} {[%emt 00:00:07]} 25. Nd4 {[%clk 00:23:07]}
{[%emt 00:01:08]} Qe5 {[%clk 00:34:35]} {[%emt 00:01:54]} 26. Nxe6+ {[%clk
00:21:43]} {[%emt 00:01:55]} Qxe6 {[%clk 00:33:07]} {[%emt 00:01:58]} 27. Nc5
{[%clk 00:21:35]} {[%emt 00:00:38]} Nxc5 {[%clk 00:32:00]} {[%emt 00:01:37]} 28.
Qxc5 {[%clk 00:21:39]} {[%emt 00:00:26]} Ra8 {[%clk 00:31:31]} {[%emt
00:00:59]} 29. Qd4+ {[%clk 00:19:11]} {[%emt 00:02:58]} Kg8 {[%clk 00:31:38]}
{[%emt 00:00:23]} 30. Rc7 {[%clk 00:18:21]} {[%emt 00:01:20]} b5 {[%clk
00:30:56]} {[%emt 00:01:12]} 31. Qc5 {[%clk 00:18:10]} {[%emt 00:00:42]} Rd8
{[%clk 00:30:12]} {[%emt 00:01:14]} 32. Rxe7 {[%clk 00:18:11]} {[%emt
00:00:28]} Qf6 {[%clk 00:29:55]} {[%emt 00:00:48]} 33. Qe5 {[%clk 00:14:41]}
{[%emt 00:04:00]} Rd1+ {[%clk 00:29:48]} {[%emt 00:00:37]} 34. Kh2 {[%clk
00:15:09]} {[%emt 00:00:01]} Kg7 {[%clk 00:30:05]} {[%emt 00:00:14]} 35. Qxf6+
{[%clk 00:13:57]} {[%emt 00:01:42]} Kxf6 {[%clk 00:30:19]} {[%emt 00:00:16]} 36.
Ra7 {[%clk 00:13:05]} {[%emt 00:01:22]} Rd2 {[%clk 00:29:55]} {[%emt 00:00:54]}
37. Ra6+ {[%clk 00:12:18]} {[%emt 00:01:17]} Ke7 {[%clk 00:30:07]} {[%emt
00:00:18]} 38. Rxa5 {[%clk 00:11:38]} {[%emt 00:01:11]} Rxf2 {[%clk 00:30:30]}
{[%emt 00:00:06]} 39. Kg3 {[%clk 00:10:42]} {[%emt 00:01:26]} Rb2 {[%clk
00:30:29]} {[%emt 00:00:31]} 40. Rxb5 {[%clk 00:10:52]} {[%emt 00:00:22]} Rxa2
{[%clk 00:30:48]} {[%emt 00:00:10]} 41. h4 {[%clk 00:00:59]} {[%emt 00:10:23]}
h5 {[%clk 00:31:06]} {[%emt 00:00:11]} 42. Kf3 {[%clk 00:00:43]} {[%emt
00:00:47]} Ke6 {[%clk 00:31:07]} {[%emt 00:00:27]} 43. g3 {[%clk 00:00:49]}
{[%emt 00:00:24]} Rb2 {[%clk 00:30:58]} {[%emt 00:00:40]} 44. Rb7 {[%clk
00:24:13]} {[%emt 00:07:05]} Rb1 {[%clk 00:58:48]} {[%emt 00:02:41]} 45. b4
{[%clk 00:23:25]} {[%emt 00:01:18]} Rf1+ {[%clk 00:58:34]} {[%emt 00:00:44]} 46.
Kg2 {[%clk 00:22:05]} {[%emt 00:01:51]} Rb1 {[%clk 00:58:22]} {[%emt 00:00:41]}
47. Kf2 {[%clk 00:21:03]} {[%emt 00:01:32]} Kf6 {[%clk 00:57:07]} {[%emt
00:01:45]} 48. Rb5 {[%clk 00:20:54]} {[%emt 00:00:40]} Ke6 {[%clk 00:57:11]}
{[%emt 00:00:25]} 49. Ke2 {[%clk 00:20:51]} {[%emt 00:00:32]} Rg1 {[%clk
00:56:50]} {[%emt 00:00:52]} 50. Rg5 {[%clk 00:20:49]} {[%emt 00:00:32]} Rb1
{[%clk 00:56:52]} {[%emt 00:00:28]} 51. b5 {[%clk 00:18:46]} {[%emt 00:02:33]}
Rb3 {[%clk 00:56:35]} {[%emt 00:00:47]} 52. Kf3 {[%clk 00:18:05]} {[%emt
00:01:11]} Rb1 {[%clk 00:56:18]} {[%emt 00:00:46]} 53. e4 {[%clk 00:17:36]}
{[%emt 00:00:59]} Rf1+ {[%clk 00:52:31]} {[%emt 00:04:17]} 54. Ke3 {[%clk
00:17:40]} {[%emt 00:00:27]} Kd6 {[%clk 00:52:35]} {[%emt 00:00:26]} 55. Kd4
{[%clk 00:17:19]} {[%emt 00:00:51]} Rd1+ {[%clk 00:52:16]} {[%emt 00:00:49]} 56.
Kc4 {[%clk 00:16:37]} {[%emt 00:01:13]} Rc1+ {[%clk 00:51:57]} {[%emt
00:00:48]} 57. Kb4 {[%clk 00:12:32]} {[%emt 00:04:35]} Re1 {[%clk 00:51:44]}
{[%emt 00:00:43]} 58. e5+ {[%clk 00:09:36]} {[%emt 00:03:27]} Kc7 {[%clk
00:51:51]} {[%emt 00:00:22]} 59. Kc5 {[%clk 00:09:18]} {[%emt 00:00:48]} Rc1+
{[%clk 00:51:47]} {[%emt 00:00:34]} 60. Kd5 {[%clk 00:09:10]} {[%emt 00:00:39]}
Rd1+ {[%clk 00:51:54]} {[%emt 00:00:22]} 61. Kc5 {[%clk 00:09:04]} {[%emt
00:00:37]} Rc1+ {[%clk 00:52:15]} {[%emt 00:00:08]} 62. Kd5 {[%clk 00:07:19]}
{[%emt 00:02:16]} Rd1+ {[%clk 00:52:38]} {[%emt 00:00:07]} 63. Kc5 {[%clk
00:07:42]} {[%emt 00:00:07]} 1/2-1/2

[Event "Vetern-SM 50+ 2025"]
[Site "Uppsala, Sweden"]
[Date "2025.07.02"]
[Round "5.2"]
[White "Gamback, Bjorn"]
[Black "Gromark, Jonas"]
[Result "1-0"]
[TimeControl "90 min for 40 move + 30 min with an increment of 30 sec starting move 1"]
[WhiteTitle "CM"]
[WhiteFideId "1703161"]
[BlackFideId "137122733"]
[WhiteElo "1996"]
[BlackElo "1822"]

1. e4 {[%clk 01:30:49]} {[%emt 00:00:10]} c5 {[%clk 01:30:44]} {[%emt
00:00:16]} 2. c3 {[%clk 01:31:13]} {[%emt 00:00:07]} d5 {[%clk 01:30:49]}
{[%emt 00:00:25]} 3. exd5 {[%clk 01:31:30]} {[%emt 00:00:13]} Qxd5 {[%clk
01:31:04]} {[%emt 00:00:15]} 4. d4 {[%clk 01:31:50]} {[%emt 00:00:10]} g6
{[%clk 01:30:32]} {[%emt 00:01:02]} 5. Nf3 {[%clk 01:31:02]} {[%emt 00:01:18]}
Bg7 {[%clk 01:29:37]} {[%emt 00:01:25]} 6. Be3 {[%clk 01:27:28]} {[%emt
00:04:03]} Bg4 {[%clk 01:20:32]} {[%emt 00:09:36]} 7. Qa4+ {[%clk 01:20:32]}
{[%emt 00:07:27]} Bd7 {[%clk 01:15:43]} {[%emt 00:05:18]} 8. Qb3 {[%clk
01:20:23]} {[%emt 00:00:38]} Qxb3 {[%clk 01:14:04]} {[%emt 00:02:10]} 9. axb3
{[%clk 01:20:46]} {[%emt 00:00:07]} cxd4 {[%clk 01:12:42]} {[%emt 00:01:52]} 10.
Nxd4 {[%clk 01:20:43]} {[%emt 00:00:33]} a6 {[%clk 01:07:08]} {[%emt 00:06:04]}
11. Nb5 {[%clk 01:14:07]} {[%emt 00:07:06]} Bxb5 {[%clk 01:05:18]} {[%emt
00:02:20]} 12. Bxb5+ {[%clk 01:14:33]} {[%emt 00:00:03]} Nd7 {[%clk 01:04:24]}
{[%emt 00:01:24]} 13. Ke2 {[%clk 01:12:51]} {[%emt 00:02:11]} O-O-O {[%clk
01:02:00]} {[%emt 00:02:54]} 14. Na3 {[%clk 00:54:50]} {[%emt 00:18:32]} e5
{[%clk 00:51:19]} {[%emt 00:11:11]} 15. Rhd1 {[%clk 00:46:06]} {[%emt
00:09:14]} Ne7 {[%clk 00:39:32]} {[%emt 00:12:17]} 16. Nc4 {[%clk 00:33:06]}
{[%emt 00:13:30]} Kc7 {[%clk 00:32:14]} {[%emt 00:07:48]} 17. Bxd7 {[%clk
00:31:45]} {[%emt 00:01:50]} Rxd7 {[%clk 00:32:24]} {[%emt 00:00:21]} 18. Bb6+
{[%clk 00:31:45]} {[%emt 00:00:30]} Kc8 {[%clk 00:29:51]} {[%emt 00:03:03]} 19.
Rxd7 {[%clk 00:27:41]} {[%emt 00:04:34]} Kxd7 {[%clk 00:30:19]} {[%emt
00:00:01]} 20. Rd1+ {[%clk 00:28:02]} {[%emt 00:00:09]} Ke6 {[%clk 00:21:29]}
{[%emt 00:09:20]} 21. Rd6+ {[%clk 00:26:05]} {[%emt 00:02:28]} Kf5 {[%clk
00:21:41]} {[%emt 00:00:19]} 22. Ne3+ {[%clk 00:19:01]} {[%emt 00:07:34]} Kg5
{[%clk 00:19:34]} {[%emt 00:02:37]} 23. Bd8 {[%clk 00:17:45]} {[%emt 00:01:46]}
Bf6 {[%clk 00:17:47]} {[%emt 00:02:16]} 24. g3 {[%clk 00:14:37]} {[%emt
00:03:38]} Kh5 {[%clk 00:11:32]} {[%emt 00:06:45]} 25. Rxf6 {[%clk 00:13:53]}
{[%emt 00:01:15]} Rxd8 {[%clk 00:11:50]} {[%emt 00:00:12]} 26. Rxf7 {[%clk
00:14:08]} {[%emt 00:00:15]} Rd7 {[%clk 00:10:28]} {[%emt 00:01:51]} 27. Rxh7+
{[%clk 00:13:24]} {[%emt 00:01:15]} Kg5 {[%clk 00:10:44]} {[%emt 00:00:14]} 28.
c4 {[%clk 00:12:29]} {[%emt 00:01:24]} Rc7 {[%clk 00:10:08]} {[%emt 00:01:06]}
29. h4+ {[%clk 00:12:31]} {[%emt 00:00:28]} Kf6 {[%clk 00:10:21]} {[%emt
00:00:17]} 30. Rxe7 {[%clk 00:12:45]} {[%emt 00:00:16]} 1-0